bitfinex-derivatives/quotes_BTCF0:USTF0_20250728
["timestamp","ask_amount","ask_price","bid_price","bid_amount"]
[1753664945171,0.47814,119280.0,119270.0,0.44572333]
[1753664947472,0.40393,119280.0,119270.0,0.44572333]
[1753664949376,0.0469,119280.0,119270.0,0.72380616]
[1753664949575,0.06465298,119280.0,119270.0,0.72380616]
[1753664949787,0.01785298,119280.0,119270.0,0.72380616]
[1753664950881,0.49588925,119280.0,119270.0,0.8411605]
[1753664951080,0.49588925,119280.0,119270.0,1.11924333]
[1753664953883,0.49588925,119280.0,119270.0,0.44572333]
[1753664954083,0.49588925,119280.0,119270.0,1.11920333]
[1753664954276,0.66351605,119280.0,119270.0,1.11920333]
[1753664954581,0.49588925,119280.0,119270.0,1.11920333]
[1753664955884,0.49588925,119280.0,119270.0,0.44572333]
[1753664956080,0.66351605,119280.0,119270.0,1.11924333]
[1753664957684,0.66351605,119280.0,119270.0,1.11920333]
[1753664957986,0.49588925,119280.0,119270.0,1.11920333]
[1753664958388,0.66351605,119280.0,119270.0,1.11920333]
[1753664959286,0.66351605,119280.0,119270.0,0.44572333]
[1753664959483,0.66351605,119280.0,119270.0,1.11920333]
[1753664959689,0.49588925,119280.0,119270.0,1.11920333]
[1753664959885,0.49588925,119280.0,119270.0,0.8411205]
[1753664960086,0.66351605,119280.0,119270.0,0.8411205]
[1753664960285,0.66351605,119280.0,119270.0,0.1676405]
[1753664960482,0.94159888,119280.0,119270.0,0.8411205]
[1753664961188,0.66351605,119280.0,119270.0,0.8411205]
[1753664963793,0.66351605,119280.0,119270.0,1.11920333]
[1753664965791,0.66351605,119280.0,119270.0,0.8411205]
[1753664966096,0.66351605,119280.0,119270.0,0.8411605]
[1753664966295,0.94159888,119280.0,119270.0,0.8411605]
[1753664966696,0.66351605,119280.0,119270.0,0.8411605]
[1753664970098,0.66351605,119280.0,119270.0,1.11924333]
[1753664970299,0.66351605,119280.0,119270.0,0.8411605]
[1753664970596,0.05981163,119310.0,119270.0,2.05428835]
[1753664970794,0.25507135,119350.0,119300.0,0.83424849]
[1753664970995,0.42141,119360.0,119350.0,0.247408]
[1753664971198,0.34673,119360.0,119350.0,1.43573895]
[1753664971395,0.03061,119370.0,119360.0,0.203544]
[1753664971694,0.42141,119380.0,119370.0,0.1896699]
[1753664971897,0.42141,119380.0,119370.0,1.21159912]
[1753664972592,0.42141,119380.0,119370.0,1.14603273]
[1753664972795,0.42141,119380.0,119370.0,1.19367773]
[1753664973101,0.47228,119380.0,119370.0,1.20753773]
[1753664974992,0.10078,119380.0,119370.0,1.20753773]
[1753664975199,0.05087,119380.0,119370.0,1.20753773]
[1753664975397,0.004,119380.0,119370.0,1.20753773]
[1753664975996,0.06362849,119390.0,119380.0,0.1896565]
[1753664976305,0.06362849,119390.0,119380.0,0.52924433]
[1753664977502,0.31326,119430.0,119420.0,0.1896003]
[1753664977702,0.46838,119430.0,119420.0,1.21000813]
[1753664977908,0.46838,119430.0,119420.0,1.04257783]
[1753664978208,0.46838,119430.0,119420.0,1.21000813]
[1753664980898,0.46838,119430.0,119420.0,1.22386813]
[1753664981304,0.04697,119430.0,119420.0,1.22386813]
[1753664982211,0.0001,119430.0,119420.0,1.22386813]
[1753664982509,0.0021,119430.0,119420.0,1.22386813]
[1753664984106,0.04897,119430.0,119420.0,1.22386813]
[1753664986511,0.04697,119430.0,119420.0,1.22486813]
[1753664987814,0.04697,119430.0,119420.0,0.8991403]
[1753664988019,0.46838,119430.0,119420.0,1.22590813]
[1753664988708,0.09688,119430.0,119420.0,1.22590813]
[1753664988919,0.04697,119430.0,119420.0,1.22590813]
[1753664991410,0.04697,119430.0,119420.0,0.9001803]
[1753664991715,0.04697,119430.0,119420.0,1.22590813]
[1753664995010,0.04697,119430.0,119420.0,1.1779084]
[1753664998414,0.46762,119430.0,119420.0,0.4821884]
[1753664998619,0.46762,119430.0,119420.0,1.1613684]
[1753664999219,0.46762,119430.0,119420.0,1.1752284]
[1753665002538,0.04697,119430.0,119420.0,1.1752284]
[1753665003433,0.2082,119430.0,119420.0,1.1752284]
[1753665003742,0.46762,119430.0,119420.0,1.1752284]
[1753665005037,0.46762,119430.0,119420.0,0.8975003]
[1753665005233,0.46762,119430.0,119420.0,1.1752284]
[1753665006237,0.46762,119430.0,119420.0,1.19963631]
[1753665006636,0.46762,119430.0,119420.0,1.1752284]
[1753665007231,0.46762,119430.0,119420.0,1.19918592]
[1753665009640,0.46762,119430.0,119420.0,1.1752284]
[1753665012635,0.46762,119430.0,119420.0,0.8975003]
[1753665012836,0.46762,119430.0,119420.0,1.1752284]
[1753665013831,0.46762,119430.0,119420.0,1.1613684]
[1753665014036,0.46762,119430.0,119420.0,1.18394381]
[1753665014037,0.6350364,119430.0,119420.0,1.18394381]
[1753665014237,0.9127645,119430.0,119420.0,0.19100581]
[1753665014534,1.0802365,119430.0,119420.0,0.69268]
[1753665014734,1.0802365,119430.0,119420.0,0.8601104]
[1753665014937,1.0802365,119430.0,119420.0,0.69268]
[1753665015135,1.3302365,119430.0,119420.0,0.001]
[1753665015336,0.3553404,119420.0,119410.0,1.01127571]
[1753665015536,0.9142585,119420.0,119410.0,0.92755761]
[1753665015837,1.08173851,119420.0,119410.0,0.23415761]
[1753665016037,1.08173851,119420.0,119410.0,0.1674341]
[1753665016838,0.80401041,119420.0,119410.0,0.1674341]
[1753665017037,1.08373851,119420.0,119410.0,0.1674341]
[1753665017737,1.10052116,119420.0,119410.0,0.1674341]
[1753665018930,1.09852116,119420.0,119410.0,0.1674341]
[1753665019130,1.10252116,119420.0,119410.0,0.1674341]
[1753665019936,0.5880944,119410.0,119400.0,0.9454957]
[1753665020236,0.6365444,119410.0,119400.0,0.9454957]
[1753665022142,0.6385444,119410.0,119400.0,0.9454957]
[1753665022442,0.6385444,119410.0,119400.0,0.9676657]
[1753665023642,0.6385444,119410.0,119400.0,1.2453938]
[1753665024944,0.6385444,119410.0,119400.0,1.2035292]
[1753665025145,0.6385444,119410.0,119400.0,0.8839387]
[1753665025345,0.64354608,119410.0,119400.0,0.8839387]
[1753665025945,0.64354608,119410.0,119400.0,0.8849387]
[1753665026943,0.92127418,119410.0,119400.0,0.001]
[1753665027143,0.6455085,119400.0,119390.0,0.71469541]
[1753665027449,0.6455226,119390.0,119380.0,0.71469541]
[1753665027646,0.6455226,119390.0,119380.0,0.88218201]
[1753665027848,0.6455226,119390.0,119380.0,0.8596066]
[1753665028043,0.6455226,119390.0,119380.0,0.69212]
[1753665028248,0.6455226,119390.0,119380.0,0.8596065]
[1753665028743,0.6455226,119390.0,119380.0,0.001]
[1753665028945,0.6455226,119390.0,119380.0,0.6918]
[1753665029150,0.6455226,119390.0,119380.0,0.69172]
[1753665029749,0.6455226,119390.0,119380.0,0.69372]
[1753665030451,0.9232507,119390.0,119380.0,0.69372]
[1753665030847,0.9232507,119390.0,119380.0,0.8612065]
[1753665031154,0.9232507,119390.0,119380.0,0.71589]
[1753665032151,0.9232507,119390.0,119380.0,0.69272]
[1753665033054,0.9232507,119390.0,119380.0,0.002]
[1753665036155,0.93993674,119390.0,119380.0,0.002]
[1753665037259,0.66220864,119390.0,119380.0,0.002]
[1753665037463,0.93993674,119390.0,119380.0,0.002]
[1753665042063,1.62929674,119390.0,119380.0,0.002]
[1753665042964,0.2471898,119370.0,119360.0,0.22921909]
[1753665043265,0.93996394,119370.0,119360.0,0.87618379]
[1753665043569,0.66223584,119370.0,119360.0,0.87618379]
[1753665044265,0.66223584,119370.0,119360.0,0.88018379]
[1753665044664,0.66223584,119370.0,119360.0,0.90235379]
[1753665044969,0.66223584,119370.0,119360.0,0.90535379]
[1753665046862,0.66736305,119370.0,119360.0,0.90535379]
[1753665047968,0.73566874,119370.0,119360.0,0.90535379]
[1753665048668,0.73566874,119370.0,119360.0,0.90695379]
[1753665050169,0.73054153,119370.0,119360.0,0.90695379]
[1753665051366,0.73557344,119370.0,119360.0,0.90695379]
[1753665054068,1.01330154,119370.0,119360.0,0.90695379]
[1753665057365,0.73557344,119370.0,119360.0,0.21811379]
[1753665057670,0.73557344,119370.0,119360.0,1.18228189]
[1753665058068,0.73557344,119370.0,119360.0,0.90455379]
[1753665060874,1.01330154,119370.0,119360.0,0.90455379]
[1753665061076,0.73563921,119370.0,119360.0,0.90455379]
[1753665061669,1.18091931,119370.0,119360.0,0.007]
[1753665061869,0.6320677,119350.0,119340.0,0.02317]
[1753665062073,0.5539857,119330.0,119320.0,0.206199]
[1753665062272,0.92657561,119330.0,119320.0,0.8792198]
[1753665062474,0.92657561,119330.0,119320.0,0.71165]
[1753665062671,0.92657561,119330.0,119320.0,0.8792198]
[1753665062871,0.64884751,119330.0,119320.0,0.1923398]
[1753665063072,0.64884751,119330.0,119320.0,0.8792198]
[1753665066580,0.64884751,119330.0,119320.0,0.8822198]
[1753665067083,0.64884751,119330.0,119320.0,0.8852198]
[1753665068677,0.92657561,119330.0,119320.0,0.8852198]
[1753665069384,0.92966087,119330.0,119320.0,0.8852198]
[1753665072582,0.92966087,119330.0,119320.0,0.69288]
[1753665072785,1.61658087,119330.0,119320.0,0.006]
[1753665074175,0.3558097,119320.0,119310.0,0.001]
[1753665074380,0.92658961,119320.0,119310.0,0.001]
[1753665074883,0.92658961,119320.0,119310.0,0.1685838]
[1753665075085,0.92658961,119320.0,119310.0,0.001]
[1753665075590,0.92758961,119320.0,119310.0,0.006]
[1753665076689,0.92758961,119320.0,119310.0,0.01]
[1753665076988,0.92758961,119320.0,119310.0,0.1765838]
[1753665077390,0.92758961,119320.0,119310.0,0.1765833]
[1753665077586,0.92758961,119320.0,119310.0,0.009]
[1753665078593,0.92758961,119320.0,119310.0,0.1765832]
[1753665079095,0.64986151,119320.0,119310.0,0.1765832]
[1753665079297,0.92758961,119320.0,119310.0,0.1775832]
[1753665083394,0.64986151,119320.0,119310.0,0.1775832]
[1753665083692,0.92758961,119320.0,119310.0,0.1775832]
[1753665087705,0.92758961,119320.0,119310.0,0.1765832]
[1753665091004,0.64986151,119320.0,119310.0,0.1765832]
[1753665091207,0.92758961,119320.0,119310.0,0.1765832]
[1753665094009,0.9870371,119320.0,119310.0,0.1765832]
[1753665095810,0.9870371,119320.0,119310.0,0.009]
[1753665096313,0.92758961,119320.0,119310.0,0.009]
[1753665096697,1.61094961,119320.0,119310.0,0.1765832]
[1753665098210,0.64986151,119320.0,119310.0,0.4790813]
[1753665098410,0.64986101,119320.0,119310.0,0.4929413]
[1753665098602,0.70967705,119320.0,119310.0,0.4929413]
[1753665099200,0.12339785,119320.0,119310.0,0.4929413]
[1753665099404,0.07756785,119320.0,119310.0,0.4929413]
[1753665099612,0.01775181,119320.0,119310.0,0.7706694]
[1753665099814,0.01775181,119320.0,119310.0,0.4929413]
[1753665100405,0.06554181,119320.0,119310.0,0.4929413]
[1753665101412,0.01775181,119320.0,119310.0,0.4929413]
[1753665102405,0.01775181,119320.0,119310.0,0.9105653]
[1753665103112,0.23311101,119320.0,119310.0,0.9105653]
[1753665103310,0.06554181,119320.0,119310.0,0.49608273]
[1753665106017,0.65167101,119320.0,119310.0,0.2152132]
[1753665106215,0.65167101,119320.0,119310.0,0.4929413]
[1753665108807,0.65167101,119320.0,119310.0,0.2013532]
[1753665109005,0.65167101,119320.0,119310.0,0.8836332]
[1753665110311,0.65167101,119320.0,119310.0,1.1613613]
[1753665110707,0.65167101,119320.0,119310.0,0.8836332]
[1753665111420,0.48410181,119320.0,119310.0,1.1752213]
[1753665111620,0.65167101,119320.0,119310.0,1.1752213]
[1753665111922,0.65167101,119320.0,119310.0,1.1613613]
[1753665112117,0.65167101,119320.0,119310.0,0.8836332]
[1753665112319,0.65167101,119320.0,119310.0,1.1613613]
[1753665114123,0.65167101,119320.0,119310.0,1.1752213]
[1753665115518,0.65167101,119320.0,119310.0,1.1613613]
[1753665116922,0.65167101,119320.0,119310.0,0.8836332]
[1753665117123,0.65167101,119320.0,119310.0,0.8820332]
[1753665117926,0.65167101,119320.0,119310.0,0.8836332]
[1753665118827,0.65167101,119320.0,119310.0,1.1613613]
[1753665119628,0.65167101,119320.0,119310.0,0.8836332]
[1753665119926,0.65167101,119320.0,119310.0,0.2013532]
[1753665120129,0.65167101,119320.0,119310.0,0.8839132]
[1753665120421,0.92939911,119320.0,119310.0,0.009]
[1753665120630,0.92939911,119320.0,119310.0,0.69144]
[1753665121222,0.92939911,119320.0,119310.0,0.8590231]
[1753665121527,0.92939911,119320.0,119310.0,0.69144]
[1753665121727,0.92939911,119320.0,119310.0,0.8590231]
[1753665122121,0.92939911,119320.0,119310.0,0.69144]
[1753665122325,1.20712721,119320.0,119310.0,0.69144]
[1753665122533,0.6482571,119300.0,119290.0,0.1685992]
[1753665122720,0.94273701,119300.0,119290.0,0.8507192]
[1753665123228,0.66500891,119300.0,119290.0,0.8507192]
[1753665123624,0.66500891,119300.0,119290.0,0.8728892]
[1753665124233,0.66500891,119300.0,119290.0,0.8744892]
[1753665124431,0.66600891,119300.0,119290.0,0.8784892]
[1753665124626,0.66600891,119300.0,119290.0,0.8804892]
[1753665125631,0.9478172,119300.0,119290.0,0.1983692]
[1753665125827,0.9478172,119300.0,119290.0,0.1735992]
[1753665126027,0.9478172,119300.0,119290.0,0.8554114]
[1753665126225,0.9478172,119300.0,119290.0,0.006]
[1753665126431,0.9478172,119300.0,119290.0,0.68772]
[1753665126825,0.9478172,119300.0,119290.0,0.006]
[1753665127730,0.9478172,119300.0,119290.0,0.1716113]
[1753665127931,0.6720891,119300.0,119290.0,0.1716113]
[1753665128235,0.9498172,119300.0,119290.0,0.1716113]
[1753665128424,1.6315372,119300.0,119290.0,0.1716113]
[1753665128734,0.9488172,119300.0,119290.0,0.1676113]
[1753665128922,0.9508172,119300.0,119290.0,0.1676113]
[1753665130626,0.6730891,119300.0,119290.0,0.1676113]
[1753665130830,0.9508172,119300.0,119290.0,0.1676113]
[1753665133231,0.6730891,119300.0,119290.0,0.4701094]
[1753665133432,0.6730891,119300.0,119290.0,0.4839694]
[1753665133433,0.66900891,119300.0,119290.0,0.4839694]
[1753665133632,0.66900901,119300.0,119290.0,0.4839694]
[1753665135135,0.50141181,119300.0,119290.0,0.4839694]
[1753665135337,0.66900901,119300.0,119290.0,0.4839694]
[1753665135730,0.50141181,119300.0,119290.0,0.4839694]
[1753665136126,0.66900901,119300.0,119290.0,0.4839694]
[1753665136522,0.50141181,119300.0,119290.0,0.4839694]
[1753665136935,0.06581181,119300.0,119290.0,0.50249053]
[1753665141230,0.02075181,119300.0,119290.0,0.50249053]
[1753665141729,0.06581181,119300.0,119290.0,0.50249053]
[1753665142936,0.06635464,119300.0,119290.0,0.50249053]
[1753665146234,0.02129464,119300.0,119290.0,0.67013853]
[1753665146541,0.04654,119320.0,119310.0,0.1675833]
[1753665146732,0.04654,119320.0,119310.0,1.1255914]
[1753665148138,0.05054,119320.0,119310.0,1.1255914]
[1753665148335,0.05054,119320.0,119310.0,1.1297282]
[1753665148933,0.05054,119320.0,119310.0,1.1255914]
[1753665149230,0.05254,119320.0,119310.0,1.1255914]
[1753665149635,0.006,119320.0,119310.0,1.1255914]
[1753665150534,0.006,119320.0,119310.0,1.2932154]
[1753665151132,0.002,119320.0,119310.0,1.2932154]
[1753665151734,0.002,119320.0,119310.0,1.1255914]
[1753665151934,0.04854,119320.0,119310.0,1.1255914]
[1753665152134,0.04654,119320.0,119310.0,1.1265914]
[1753665152940,0.04654,119320.0,119310.0,1.13070666]
[1753665157637,0.25791173,119340.0,119330.0,0.1675555]
[1753665157638,0.62481173,119340.0,119330.0,0.1675555]
[1753665157843,0.62481173,119340.0,119330.0,1.1250036]
[1753665158144,0.67135173,119340.0,119330.0,1.1250036]
[1753665158442,0.68855757,119340.0,119330.0,1.1250036]
[1753665158945,0.69055757,119340.0,119330.0,1.1250036]
[1753665162348,0.69355757,119340.0,119330.0,1.1250036]
[1753665164242,0.69356377,119340.0,119330.0,1.1250036]
[1753665168146,0.69356377,119340.0,119330.0,0.8472755]
[1753665168449,0.69356377,119340.0,119330.0,1.1250036]
[1753665170240,0.69356377,119340.0,119330.0,0.8472755]
[1753665171346,0.97129187,119340.0,119330.0,0.8472755]
[1753665172549,0.69356377,119340.0,119330.0,0.8472755]
[1753665173146,0.80799787,119340.0,119330.0,0.8467554]
[1753665173346,0.89177447,119340.0,119330.0,0.8467554]
[1753665173547,0.4074254,119330.0,119320.0,0.2094486]
[1753665173849,0.4074254,119330.0,119320.0,0.8467593]
[1753665173850,0.94943554,119330.0,119320.0,0.8467593]
[1753665174246,0.94943554,119330.0,119320.0,0.1675593]
[1753665174448,0.94943554,119330.0,119320.0,0.8467593]
[1753665175244,1.00925158,119330.0,119320.0,0.8467593]
[1753665175749,1.00925158,119330.0,119320.0,0.6792]
[1753665175948,1.01125158,119330.0,119320.0,0.6792]
[1753665176150,1.01225158,119330.0,119320.0,0.6792]
[1753665176847,0.94943554,119330.0,119320.0,0.8467695]
[1753665177054,0.95743554,119330.0,119320.0,0.8477695]
[1753665177248,1.01725475,119330.0,119320.0,0.6802]
[1753665179148,1.01725475,119330.0,119320.0,0.001]
[1753665179344,1.01725475,119330.0,119320.0,0.6802]
[1753665179547,0.95743554,119330.0,119320.0,0.6802]
[1753665180857,0.95743554,119330.0,119320.0,0.001]
[1753665181057,0.95743554,119330.0,119320.0,0.68024]
[1753665181359,1.01723281,119330.0,119320.0,0.68024]
[1753665182053,0.95743554,119330.0,119320.0,0.68024]
[1753665182758,0.97421566,119330.0,119320.0,0.68024]
[1753665183257,0.97421566,119330.0,119320.0,0.001]
[1753665183466,1.0339691,119330.0,119320.0,0.68024]
[1753665183858,0.97421566,119330.0,119320.0,0.68024]
[1753665184160,1.04860472,119330.0,119320.0,0.61230741]
[1753665184657,0.3572995,119320.0,119310.0,0.2513746]
[1753665184955,0.65810154,119320.0,119310.0,0.9306146]
[1753665185357,0.71784463,119320.0,119310.0,0.9306146]
[1753665185954,0.71984463,119320.0,119310.0,0.9316146]
[1753665186457,0.71984463,119320.0,119310.0,0.8897188]
[1753665186756,0.72284463,119320.0,119310.0,0.8897188]
[1753665188062,0.72284463,119320.0,119310.0,0.2104788]
[1753665188257,0.72284463,119320.0,119310.0,0.847783]
[1753665188952,1.00057273,119320.0,119310.0,0.847783]
[1753665189360,1.00057273,119320.0,119310.0,0.168583]
[1753665189555,1.00057273,119320.0,119310.0,0.847823]
[1753665189761,1.00057273,119320.0,119310.0,0.168583]
[1753665189961,1.00057273,119320.0,119310.0,0.847823]
[1753665191863,0.72284463,119320.0,119310.0,0.847823]
[1753665192061,1.00057273,119320.0,119310.0,0.847823]
[1753665192463,0.72284463,119320.0,119310.0,0.847823]
[1753665193668,0.72284463,119320.0,119310.0,0.847783]
[1753665194275,0.66310154,119320.0,119310.0,0.847783]
[1753665195368,0.23668134,119320.0,119310.0,1.1255111]
[1753665195573,0.23668134,119320.0,119310.0,1.1254711]
[1753665198374,0.23668134,119320.0,119310.0,0.168583]
[1753665198563,0.48265134,119320.0,119310.0,1.1254711]
[1753665198764,0.66310134,119320.0,119310.0,1.1254711]
[1753665199260,0.66310134,119320.0,119310.0,0.847743]
[1753665199464,0.66310134,119320.0,119310.0,1.1254711]
[1753665200278,0.66310134,119320.0,119310.0,0.168583]
[1753665200575,0.66310134,119320.0,119310.0,0.847703]
[1753665201571,0.66310134,119320.0,119310.0,1.1254311]
[1753665203073,0.6628482,119320.0,119310.0,1.1254311]
[1753665204173,0.6628569,119320.0,119310.0,1.1254311]
[1753665206774,0.6628569,119320.0,119310.0,0.4463111]
[1753665206975,0.6628569,119320.0,119310.0,1.1253511]
[1753665207275,0.6628569,119320.0,119310.0,0.847623]
[1753665209281,0.6628569,119320.0,119310.0,1.1253511]
[1753665212081,0.66285683,119320.0,119310.0,1.1253511]
[1753665212676,0.66285683,119320.0,119310.0,1.1253111]
[1753665227586,0.66285683,119320.0,119310.0,0.847583]
[1753665227781,0.94058493,119320.0,119310.0,0.8473835]
[1753665227982,0.94058493,119320.0,119310.0,0.6798]
[1753665228285,0.94058493,119320.0,119310.0,0.67976]
[1753665230988,0.94058493,119320.0,119310.0,0.8473434]
[1753665232889,0.94058493,119320.0,119310.0,0.67976]
[1753665233089,0.94058493,119320.0,119310.0,0.8473433]
[1753665233389,0.94058493,119320.0,119310.0,0.001]
[1753665233590,0.94058493,119320.0,119310.0,0.67968]
[1753665234189,1.00032802,119320.0,119310.0,0.67968]
[1753665237392,1.00032802,119320.0,119310.0,0.67964]
[1753665238491,1.00032802,119320.0,119310.0,0.6796]
[1753665240192,1.01497399,119320.0,119310.0,0.6796]
[1753665240793,1.01497399,119320.0,119310.0,0.8471833]
[1753665240997,1.01497399,119320.0,119310.0,0.6796]
[1753665241393,0.73724589,119320.0,119310.0,0.8471833]
[1753665244193,0.72271828,119320.0,119310.0,0.8471833]
[1753665244393,1.00044638,119320.0,119310.0,0.8471833]
[1753665244694,1.00044638,119320.0,119310.0,0.6796]
[1753665244992,0.98347885,119320.0,119310.0,0.6796]
[1753665245192,1.00065007,119320.0,119310.0,0.6796]
[1753665247889,1.00065007,119320.0,119310.0,0.8471832]
[1753665248391,1.00065007,119320.0,119310.0,0.6796]
[1753665249394,0.72292197,119320.0,119310.0,0.6796]
[1753665249590,1.00065007,119320.0,119310.0,0.6796]
[1753665252098,0.98347885,119320.0,119310.0,0.6796]
[1753665252299,1.00064962,119320.0,119310.0,0.6796]
[1753665252896,1.14048212,119320.0,119310.0,0.8471831]
[1753665253700,0.72292152,119320.0,119310.0,0.8471831]
[1753665253900,1.14048212,119320.0,119310.0,0.8471831]
[1753665254101,1.14048212,119320.0,119310.0,1.0559634]
[1753665254402,1.14048212,119320.0,119310.0,0.8883803]
[1753665254599,1.14048212,119320.0,119310.0,0.6796]
[1753665255303,0.98095212,119320.0,119310.0,0.6796]
[1753665255498,1.14278212,119320.0,119310.0,0.6796]
[1753665258701,1.08292067,119320.0,119310.0,0.6796]
[1753665262209,1.15730973,119320.0,119310.0,0.6796]
[1753665262706,1.08292067,119320.0,119310.0,0.6796]
[1753665263106,1.15730973,119320.0,119310.0,0.6796]
[1753665264509,1.08292067,119320.0,119310.0,0.6796]
[1753665265419,1.15730973,119320.0,119310.0,0.6796]
[1753665265915,1.21723129,119320.0,119310.0,0.6796]
[1753665266115,1.14284223,119320.0,119310.0,0.6796]
[1753665266416,1.08292067,119320.0,119310.0,0.6796]
[1753665266816,1.08292067,119320.0,119310.0,0.001]
[1753665267217,1.29170097,119320.0,119310.0,0.001]
[1753665267416,1.08292067,119320.0,119310.0,0.001]
[1753665268315,1.08292067,119320.0,119290.0,0.2095016]
[1753665268316,0.3513773,119300.0,119290.0,0.2095016]
[1753665268517,1.07815867,119300.0,119290.0,0.8875816]
[1753665268717,1.07815867,119300.0,119290.0,1.0963619]
[1753665268912,1.07815867,119300.0,119290.0,0.8875816]
[1753665269416,1.07815867,119300.0,119290.0,0.8885816]
[1753665270415,1.07915867,119300.0,119290.0,0.8885816]
[1753665270608,0.87613656,119300.0,119290.0,0.8885816]
[1753665270815,0.87613656,119300.0,119290.0,1.0973619]
[1753665271015,0.66735626,119300.0,119290.0,1.0973619]
[1753665271215,0.87513656,119300.0,119290.0,1.0973619]
[1753665271415,0.87713656,119300.0,119290.0,1.0973619]
[1753665271615,1.08591686,119300.0,119290.0,0.8885816]
[1753665272215,0.66835626,119300.0,119290.0,0.8885816]
[1753665272420,1.08591686,119300.0,119290.0,0.8885816]
[1753665272616,0.87713656,119300.0,119290.0,0.8875816]
[1753665272819,0.87813656,119300.0,119290.0,1.0973619]
[1753665273216,0.87813656,119300.0,119290.0,0.8885816]
[1753665273417,0.66935626,119300.0,119290.0,0.8885816]
[1753665273616,0.87813656,119300.0,119290.0,1.0973619]
[1753665274321,0.93805801,119300.0,119290.0,1.0973619]
[1753665274621,1.00513182,119300.0,119290.0,1.0973619]
[1753665278225,1.00513182,119300.0,119290.0,0.8885816]
[1753665278425,1.00513182,119300.0,119290.0,1.0973619]
[1753665279426,1.00513182,119300.0,119290.0,1.0554605]
[1753665279617,1.21391212,119300.0,119290.0,1.0554605]
[1753665279823,1.21391212,119300.0,119290.0,0.67908]
[1753665280220,1.21391212,119300.0,119290.0,0.8466914]
[1753665280420,1.21391212,119300.0,119290.0,0.67908]
[1753665281120,1.21391212,119300.0,119290.0,0.8466914]
[1753665281827,1.15399067,119300.0,119290.0,0.8466914]
[1753665283227,1.21387577,119300.0,119290.0,0.8466914]
[1753665283430,1.15399067,119300.0,119290.0,0.8466914]
[1753665283622,1.21387577,119300.0,119290.0,0.8466914]
[1753665284125,1.15399067,119300.0,119290.0,0.8466914]
[1753665285226,0.06580077,119300.0,119290.0,1.264252]
[1753665285618,0.02017077,119300.0,119290.0,1.264252]
[1753665285818,0.02017077,119300.0,119290.0,1.8906803]
[1753665286025,0.02017077,119300.0,119290.0,1.68158]
[1753665286225,0.02017077,119300.0,119290.0,1.43158]
[1753665286728,0.02017077,119300.0,119290.0,1.29232352]
[1753665289429,0.02017077,119300.0,119290.0,1.54232352]
[1753665291132,0.02017077,119300.0,119290.0,1.29232352]
[1753665292328,0.02017077,119300.0,119290.0,1.54232352]
[1753665292628,7e-08,119300.0,119290.0,1.54232352]
[1753665294138,7e-08,119300.0,119290.0,1.29232352]
[1753665294932,7e-08,119300.0,119290.0,1.54232352]
[1753665295135,7e-08,119300.0,119290.0,1.29232352]
[1753665296040,7e-08,119300.0,119290.0,1.54232352]
[1753665297238,7e-08,119300.0,119290.0,1.29232352]
[1753665300543,0.04863007,119300.0,119290.0,1.29232352]
[1753665300751,0.04863007,119300.0,119290.0,1.29192352]
[1753665301753,0.04863007,119300.0,119290.0,0.44691552]
[1753665302054,0.21780007,119300.0,119290.0,1.12423552]
[1753665302249,0.04863007,119300.0,119290.0,1.12423552]
[1753665307749,0.49902006,119300.0,119290.0,1.12407552]
[1753665308554,0.49902006,119300.0,119290.0,0.44691552]
[1753665308754,0.66661589,119300.0,119290.0,1.12403552]
[1753665309155,0.66661589,119300.0,119290.0,0.1686114]
[1753665309353,0.94492001,119300.0,119290.0,0.1686114]
[1753665309658,0.94492001,119300.0,119290.0,0.8457314]
[1753665310157,0.66661589,119300.0,119290.0,0.8457314]
[1753665313862,0.94492001,119300.0,119290.0,0.8457314]
[1753665314061,0.66661589,119300.0,119290.0,0.8457314]
[1753665318558,0.66661589,119300.0,119290.0,1.12403552]
[1753665318766,0.66661589,119300.0,119290.0,0.8457314]
[1753665320770,0.66661589,119300.0,119290.0,1.12403552]
[1753665321064,0.49901989,119300.0,119290.0,1.12403552]
[1753665321366,0.25730989,119300.0,119290.0,1.12403552]
[1753665321567,0.06590989,119300.0,119290.0,1.12403552]
[1753665323066,0.01727989,119300.0,119290.0,1.29168352]
[1753665323262,9e-08,119300.0,119290.0,1.29168352]
[1753665323570,0.04863,119320.0,119310.0,0.2932692]
[1753665323764,0.04863,119320.0,119310.0,1.24849332]
[1753665324360,0.3555851,119320.0,119310.0,1.24849332]
[1753665324563,0.4281251,119320.0,119310.0,1.31630896]
[1753665325464,0.4281251,119320.0,119310.0,1.31730896]
[1753665325664,0.4311251,119320.0,119310.0,1.31730896]
[1753665325966,0.4351251,119320.0,119310.0,1.31730896]
[1753665326671,0.4321251,119320.0,119310.0,1.31730896]
[1753665327575,0.05263,119320.0,119310.0,1.31730896]
[1753665327869,0.04963,119320.0,119310.0,1.31630896]
[1753665328174,0.05063,119320.0,119310.0,1.31630896]
[1753665328377,0.1105151,119320.0,119310.0,1.31630896]
[1753665328866,0.05063,119320.0,119310.0,1.31630896]
[1753665329868,0.002,119320.0,119310.0,1.31630896]
[1753665330172,0.002,119320.0,119310.0,1.59461308]
[1753665330573,0.002,119320.0,119310.0,1.61322775]
[1753665330765,0.002,119320.0,119310.0,1.33492363]
[1753665331171,0.001,119320.0,119310.0,1.33492363]
[1753665331372,0.0491,119320.0,119310.0,1.33592363]
[1753665332073,0.0481,119320.0,119310.0,1.33592363]
[1753665333175,0.23919149,119330.0,119320.0,0.1675683]
[1753665333475,0.06526149,119330.0,119320.0,0.44587242]
[1753665334478,0.06626149,119330.0,119320.0,0.44587242]
[1753665334773,0.23381569,119330.0,119320.0,0.44587242]
[1753665335274,0.42516944,119330.0,119320.0,0.44587242]
[1753665335764,0.57235944,119330.0,119320.0,0.44587242]
[1753665335969,0.67967944,119330.0,119320.0,0.44587242]
[1753665336379,0.68067944,119330.0,119320.0,0.44587242]
[1753665337468,0.51312524,119330.0,119320.0,0.44587242]
[1753665337673,0.68067994,119330.0,119320.0,0.44587242]
[1753665339079,0.51312524,119330.0,119320.0,0.44587242]
[1753665339577,0.68068004,119330.0,119320.0,0.44587242]
[1753665343884,0.68068004,119330.0,119320.0,0.1675683]
[1753665344085,0.68068004,119330.0,119320.0,0.44587242]
[1753665346284,0.6441089,119320.0,119310.0,0.33780051]
[1753665346580,0.6441089,119320.0,119290.0,0.0419012]
[1753665346581,0.644137,119300.0,119290.0,0.2514142]
[1753665346779,0.6441651,119280.0,119270.0,0.2514546]
[1753665346979,0.6441651,119280.0,119270.0,0.9277746]
[1753665347176,0.6441651,119280.0,119270.0,0.2514546]
[1753665347374,0.66158051,119280.0,119270.0,0.9277746]
[1753665347577,0.93988463,119280.0,119270.0,0.9277746]
[1753665347884,0.93988463,119280.0,119270.0,0.8439591]
[1753665348081,0.93988463,119280.0,119270.0,0.8449591]